bitfinex-derivatives/quotes_ETHF0:USTF0_20250530
["timestamp","ask_amount","ask_price","bid_price","bid_amount"]
[1748576080565,0.75817,2637.4,2637.3,2.5539]
[1748576081365,1.89521,2637.8,2637.4,0.75816]
[1748576081366,3.822,2637.8,2637.4,0.75816]
[1748576081670,0.00568397,2637.6,2637.5,1.2966]
[1748576081866,0.76382397,2637.6,2637.5,1.2966]
[1748576083365,0.00568397,2637.6,2637.5,1.2966]
[1748576083570,0.00568397,2637.6,2637.5,2.05475]
[1748576083770,0.76380397,2637.6,2637.5,1.2966]
[1748576085271,0.76380397,2637.6,2637.5,2.05475]
[1748576085467,0.00568397,2637.6,2637.5,7.05475]
[1748576086171,0.76380397,2637.6,2637.5,7.05475]
[1748576086372,0.76380397,2637.6,2637.5,1.2966]
[1748576086670,0.00568397,2637.6,2637.5,2.05475]
[1748576087675,0.76380397,2637.6,2637.5,1.2966]
[1748576088768,0.76380397,2637.6,2637.5,2.05475]
[1748576089577,0.00568397,2637.6,2637.5,2.05475]
[1748576089772,0.00568397,2637.6,2637.5,2.12468857]
[1748576089978,0.76380397,2637.6,2637.5,2.12468857]
[1748576091075,0.00568397,2637.6,2637.5,2.12468857]
[1748576091272,0.76380397,2637.6,2637.5,2.12468857]
[1748576091773,0.76380397,2637.6,2637.5,1.36653857]
[1748576092177,0.76380397,2637.6,2637.5,2.12468857]
[1748576093073,0.76380397,2637.6,2637.5,1.36653857]
[1748576097384,0.76380397,2637.6,2637.5,0.06993857]
[1748576098285,0.00568397,2637.6,2637.5,0.06993857]
[1748576098588,0.76380397,2637.6,2637.5,0.82808857]
[1748576098979,0.76380397,2637.6,2637.5,0.06993857]
[1748576099386,0.76380397,2637.6,2637.5,1.35363857]
[1748576099387,0.95330397,2637.6,2637.5,1.35363857]
[1748576100179,0.19518397,2637.6,2637.5,2.11178857]
[1748576100379,0.95330397,2637.6,2637.5,2.11178857]
[1748576100683,0.95330397,2637.6,2637.5,1.35363857]
[1748576101080,0.19518397,2637.6,2637.5,1.35363857]
[1748576101289,3.822,2638.5,2637.6,1.89525]
[1748576101477,0.96604435,2638.4,2637.8,3.2078]
[1748576101680,0.758,2638.0,2637.9,2.5969]
[1748576104993,0.00568397,2638.2,2638.1,0.75797]
[1748576105183,4.4832,2638.7,2638.1,0.75797]
[1748576105184,0.75782,2638.7,2638.1,5.10269]
[1748576105385,10.90423,2639.1,2638.5,3.2078]
[1748576105584,0.96667188,2639.0,2638.9,0.75774]
[1748576105792,3.2078,2639.1,2638.8,0.75776]
[1748576105987,0.75774,2639.0,2638.9,1.3397]
[1748576108988,3.2078,2639.1,2638.9,2.09743]
[1748576109389,0.00568397,2639.2,2638.9,2.09743]
[1748576109591,0.75769,2639.1,2638.9,2.09742]
[1748576109784,0.7577,2639.1,2638.9,2.09742]
[1748576110381,0.75771,2639.0,2638.9,2.09742]
[1748576111792,0.75771,2639.0,2638.9,1.3397]
[1748576112793,0.75771,2639.1,2638.9,1.3397]
[1748576112982,0.75771,2639.0,2638.9,1.3397]
[1748576113692,0.75771,2639.0,2638.9,2.09743]
[1748576114298,0.75771,2639.0,2638.9,1.3397]
[1748576114991,0.75774,2638.9,2638.8,3.2078]
[1748576115393,0.75774,2638.9,2638.8,4.438]
[1748576116490,0.76336397,2639.2,2638.8,4.438]
[1748576116691,0.7577,2639.1,2639.0,0.7577]
[1748576117187,0.76336397,2639.2,2639.0,0.7577]
[1748576117387,0.76336397,2639.2,2639.1,1.8487]
[1748576117589,0.75774,2638.9,2638.8,3.2078]
[1748576117991,0.75777,2638.8,2638.7,0.00568397]
[1748576118191,3.96557,2638.8,2638.7,3.97e-06]
[1748576118895,5.17887,2638.8,2638.7,3.97e-06]
[1748576119294,10.17887,2638.8,2638.7,3.97e-06]
[1748576120397,0.75794,2638.2,2638.1,1.3394]
[1748576121098,0.75797,2638.1,2638.0,0.6588]
[1748576122400,0.75797,2638.1,2638.0,1.9522]
[1748576126802,0.75796,2638.2,2638.0,1.9522]
[1748576126997,7.63215,2639.1,2638.1,5.10274]
[1748576127303,0.75774,2638.9,2638.8,3.2078]
[1748576127499,0.75774,2638.9,2638.8,5.8382]
[1748576128496,0.75774,2638.9,2638.8,1.9632]
[1748576131299,0.75774,2638.9,2638.8,1.3055]
[1748576134100,3.2078,2639.1,2638.9,0.75773]
[1748576134303,3.96549,2639.1,2639.0,2.5584]
[1748576137715,3.96549,2639.1,2639.0,1.271]
[1748576137913,0.75774,2638.9,2638.8,0.06993857]
[1748576138511,6.72340524,2638.9,2638.8,8.57e-06]
[1748576139006,5.75774,2638.9,2638.8,8.57e-06]
[1748576139213,10.54243881,2638.9,2638.8,8.57e-06]
[1748576140010,0.75794,2638.2,2638.1,1.2196]
[1748576140220,0.75794,2638.2,2638.1,2.4378]
[1748576142317,3.2078,2638.6,2638.1,2.4378]
[1748576142518,0.75792,2638.3,2638.2,1.2908]
[1748576148026,0.75792,2638.3,2638.2,2.04874]
[1748576148226,0.75792,2638.3,2638.2,2.04873]
[1748576148530,0.75791,2638.4,2638.2,1.2908]
[1748576148732,0.75792,2638.3,2638.2,2.04873]
[1748576149234,1.89455,2638.7,2638.2,1.2908]
[1748576149730,0.75792,2638.3,2638.2,1.36073857]
[1748576153419,6.32841,2638.6,2638.2,1.36073857]
[1748576153420,3.2078,2638.6,2638.2,1.36073857]
[1748576153918,0.75792,2638.3,2638.2,1.36073857]
[1748576155430,0.75803,2637.9,2637.8,0.00568397]
[1748576157927,0.75803,2637.9,2637.8,1.22348397]
[1748576164131,0.75798,2638.1,2637.8,1.22348397]
[1748576164427,3.2078,2638.3,2637.9,0.6481]
[1748576164629,0.75797,2638.1,2638.0,1.2431]
[1748576165935,3.818,2638.4,2638.2,0.75793]
[1748576166137,3.2078,2638.6,2638.5,0.75786]
[1748576166329,4.93222019,2638.6,2638.4,0.75788]
[1748576166533,3.2078,2638.6,2638.5,1.2431]
[1748576166733,4.17471399,2638.6,2638.5,2.00096]
[1748576166934,1.72474399,2638.6,2638.5,1.2431]
[1748576167134,0.96691399,2638.6,2638.5,2.00096]
[1748576167634,0.96723589,2638.6,2638.5,2.00096]
[1748576167938,1.72506589,2638.6,2638.5,2.00096]
[1748576169135,0.96723589,2638.6,2638.5,2.00096]
[1748576169833,0.96723589,2638.6,2638.5,5.20876]
[1748576170036,3.2078,2639.1,2638.9,0.75772]
[1748576170339,0.00568397,2639.2,2639.1,0.75769]
[1748576170537,0.97203695,2639.2,2639.1,3.96549]
[1748576170934,0.00568397,2639.2,2639.1,3.96549]
[1748576172336,0.00568397,2639.2,2639.1,3.2078]
[1748576172539,0.00568397,2639.2,2639.1,3.96549]
[1748576176638,0.00568397,2639.2,2639.1,8.96549]
[1748576176841,3.2078,2639.9,2639.3,1.89401]
[1748576177044,3.96526,2639.9,2639.8,0.75748]
[1748576177439,3.96527,2639.9,2639.8,0.75748]
[1748576177639,0.75747,2639.9,2639.8,0.75748]
[1748576178035,0.75747,2639.9,2639.8,2.09528]
[1748576178245,0.00568397,2640.1,2639.8,1.3378]
[1748576178643,0.75746,2639.9,2639.8,1.3378]
[1748576179549,0.75751,2639.7,2639.6,0.00568397]
[1748576180649,0.75751,2639.7,2639.6,0.76322397]
[1748576180840,0.7575,2639.8,2639.7,0.75751]
[1748576181041,0.7575,2639.8,2639.7,1.238]
[1748576181942,0.75751,2639.7,2639.6,0.00568397]
[1748576182344,0.75751,2639.7,2639.6,1.23598397]
[1748576184649,0.75751,2639.7,2639.6,1.99352397]
[1748576185151,0.00568397,2640.1,2639.8,0.06993857]
[1748576185543,0.75743,2640.0,2639.9,1.3057]
[1748576185848,0.75746,2639.9,2639.8,0.06993857]
[1748576187246,0.75746,2639.9,2639.8,1.37563857]
[1748576188758,0.75746,2639.9,2639.8,2.13311857]
[1748576189349,0.75746,2639.9,2639.8,2.13309857]
[1748576190150,0.75746,2639.9,2639.8,1.37563857]
[1748576191651,0.75744,2640.0,2639.8,1.37563857]
[1748576191954,0.00568397,2640.1,2639.8,1.37563857]
[1748576192348,0.75743,2640.0,2639.8,2.13309857]
[1748576192547,0.75746,2639.9,2639.8,2.13309857]
[1748576194256,0.00568397,2640.1,2640.0,0.75743]
[1748576194450,0.76308397,2640.1,2640.0,3.2078]
[1748576194755,0.76308397,2640.1,2640.0,4.5099]
[1748576195653,0.76308397,2640.1,2640.0,3.2078]
[1748576195851,0.75746,2639.9,2639.8,0.06993857]
[1748576196048,0.75746,2639.9,2639.8,1.37203857]
[1748576197548,0.00568397,2640.1,2640.0,0.75743]
[1748576197751,0.00568397,2640.1,2640.0,3.96523]
[1748576197950,0.00568397,2640.1,2639.8,5.18703857]
[1748576198146,0.75746,2639.9,2639.8,1.37203857]
[1748576198347,0.75746,2639.9,2639.8,1.3021]
[1748576199053,0.75748,2639.8,2639.7,3.2078]
[1748576199451,0.75751,2639.7,2639.6,0.00568397]
[1748576200551,0.75769,2639.1,2639.0,3.2078]
[1748576200954,0.75766,2639.3,2639.1,0.75767]
[1748576201260,0.75763,2639.3,2639.2,1.2794]
[1748576201459,1.72437038,2639.3,2639.2,1.2794]
[1748576201651,0.75763,2639.3,2639.2,1.2794]
[1748576202359,0.75769,2639.1,2639.0,3.21348397]
[1748576203255,0.75769,2639.1,2639.0,4.47318397]
[1748576203454,0.75769,2639.1,2639.0,0.00568397]
[1748576203653,5.75769,2639.1,2639.0,0.00568397]
[1748576203859,6.72407224,2639.1,2639.0,0.00568397]
[1748576204055,8.66398913,2639.1,2639.0,0.00568397]
[1748576208166,7.69749,2639.1,2639.0,0.00568397]
[1748576208363,3.66165205,2639.1,2639.0,0.00568397]
[1748576209458,3.66165205,2639.1,2639.0,0.07562254]
[1748576211062,0.75783,2638.6,2638.5,1.2597]
[1748576211257,0.75789,2638.4,2638.3,0.6378]
[1748576211463,0.75789,2638.4,2638.3,1.9487]
[1748576212262,0.76352397,2638.6,2638.3,1.9487]
[1748576212464,0.00568397,2638.6,2638.4,0.75789]
[1748576212663,0.76351397,2638.6,2638.5,1.327]
[1748576213063,0.75789,2638.4,2638.3,0.6378]
[1748576213663,0.75794,2638.2,2638.1,0.00568397]
[1748576215771,0.75794,2638.2,2638.1,0.76365397]
[1748576215973,0.75788,2638.5,2638.3,0.75789]
[1748576216265,0.75788,2638.5,2638.4,2.72389]
[1748576216468,0.00568397,2638.6,2638.5,0.75786]
[1748576216666,0.00568397,2638.6,2638.5,2.71026]
[1748576217674,0.00568397,2638.6,2638.5,7.71026]
[1748576218158,0.00568397,2638.6,2638.5,10.91806]
[1748576219470,0.00568397,2638.6,2638.5,5.91806]
[1748576219671,0.00568397,2638.6,2638.5,10.91806]
[1748576220665,0.00568397,2638.6,2638.5,5.91806]
[1748576220867,0.75794,2638.2,2638.1,3.21348397]
[1748576221165,0.75794,2638.2,2638.1,0.00568397]
[1748576222467,0.75792,2638.3,2638.2,0.75793]
[1748576222667,0.75792,2638.3,2638.2,2.64293]
[1748576222869,0.7579,2638.4,2638.2,2.64292]
[1748576223071,0.7579,2638.4,2638.3,1.2443]
[1748576224775,0.7579,2638.4,2638.3,1.31423857]
[1748576227270,0.00568397,2638.6,2638.4,0.75788]
[1748576227271,0.75788,2638.5,2638.4,0.75788]
[1748576227466,0.76352397,2638.6,2638.5,0.75786]
[1748576227671,0.76352397,2638.6,2638.5,1.97096]
[1748576228764,0.76352397,2638.6,2638.5,1.2131]
[1748576229970,1.72868563,2638.6,2638.5,1.2131]
[1748576230174,0.75792,2638.3,2638.2,1.8538]
[1748576230979,0.75786,2638.5,2638.4,0.75788]
[1748576231579,0.75789,2638.4,2638.3,0.7579]
[1748576231777,0.75789,2638.4,2638.3,2.09833857]
[1748576231977,0.75789,2638.4,2638.3,1.34043857]
[1748576232476,0.75789,2638.4,2638.3,2.09835857]
[1748576233076,0.75789,2638.4,2638.3,1.34043857]
[1748576233581,0.00568397,2638.6,2638.3,1.34043857]
[1748576233777,0.00568397,2638.6,2638.5,0.75786]
[1748576234277,0.76351397,2638.6,2638.5,2.61426]
[1748576234471,1.73048286,2638.6,2638.5,1.8564]
[1748576234775,0.00568397,2638.6,2638.5,2.61426]
[1748576236174,0.76351397,2638.6,2638.5,2.61426]
[1748576236480,0.00568397,2638.6,2638.5,2.61426]
[1748576237675,3.2078,2639.4,2639.3,0.75763]
[1748576237876,4.17421685,2639.4,2638.9,7.0228]
[1748576238083,0.96641685,2639.3,2638.9,3.2078]
[1748576238381,3.2078,2639.4,2638.9,7.0228]
[1748576238770,3.21348397,2639.4,2638.9,7.0228]
[1748576238977,0.96389849,2639.3,2638.9,7.0228]
[1748576239277,0.75772,2639.0,2638.9,3.2078]
[1748576239472,0.75774,2639.0,2638.6,7.0218]
[1748576239679,0.75775,2638.9,2638.8,0.75775]
[1748576240075,5.10753397,2639.4,2638.8,0.75775]
[1748576240276,0.75774,2638.9,2638.8,0.75775]
[1748576241471,0.75777,2638.8,2638.7,0.75778]
[1748576241879,1.89419,2639.2,2638.6,7.7796]
[1748576242082,0.75779,2638.8,2638.7,0.75779]
[1748576242481,0.7578,2638.7,2638.6,7.77962]
[1748576243280,3.10919,2639.2,2638.6,7.77962]
[1748576243281,0.75777,2638.9,2638.8,0.75777]
[1748576244482,0.75779,2638.8,2638.7,0.75779]
[1748576245380,0.75776,2638.9,2638.8,0.75776]
[1748576245583,0.75773,2639.0,2638.9,0.75773]
[1748576245779,0.7577,2639.1,2639.0,0.7577]
[1748576246483,0.6254,2639.3,2638.6,3.2078]
[1748576246685,0.75779,2638.8,2638.7,0.75778]
[1748576247282,0.75775,2638.9,2638.8,0.75775]
[1748576248186,0.75778,2638.8,2638.7,0.75779]
[1748576248773,0.75776,2638.9,2638.8,0.75776]
[1748576249173,0.75774,2639.0,2638.9,0.75773]
[1748576249974,0.75774,2639.0,2638.9,0.82766857]
[1748576250284,0.75774,2639.0,2638.9,0.06993857]
[1748576251186,0.75774,2639.0,2638.9,0.82767857]
[1748576254182,0.75771,2639.1,2639.0,0.75771]
[1748576254385,0.75771,2639.1,2638.6,5.10236]
[1748576254386,0.6254,2639.3,2638.9,3.2078]
[1748576254587,0.75773,2639.0,2638.9,3.96552]
[1748576255189,0.75773,2639.0,2638.9,4.03545857]
[1748576255389,0.75773,2639.0,2638.9,3.27773857]
[1748576255592,0.75773,2639.0,2638.9,4.03547857]
[1748576255793,0.75773,2639.0,2638.9,3.27773857]
[1748576256394,0.75773,2639.0,2638.9,4.53263857]
[1748576257193,0.7578,2638.7,2638.6,3.2078]
[1748576257397,1.89437,2638.9,2638.5,1.2549]
[1748576257398,0.75783,2638.6,2638.5,1.2549]
[1748576258793,0.75786,2638.5,2638.4,0.6306]
[1748576259196,0.75786,2638.5,2638.4,1.8884]
[1748576261294,0.75784,2638.6,2638.5,0.75784]
[1748576261492,0.75784,2638.6,2638.5,2.06684]
[1748576261694,0.75779,2638.8,2638.7,0.75779]
[1748576262297,0.7578,2638.7,2638.6,4.58651]
[1748576262497,0.7578,2638.7,2638.6,3.8287]
[1748576263500,0.7578,2638.7,2638.6,4.58653]
[1748576263905,0.7578,2638.7,2638.6,3.8287]
[1748576264107,0.7578,2638.7,2638.6,4.58653]
[1748576265201,0.75779,2638.8,2638.7,0.75779]
[1748576265503,0.7578,2638.7,2638.6,4.58651]
[1748576265701,0.7578,2638.7,2638.6,3.8287]
[1748576267006,1.89432,2639.0,2638.4,5.20248]
[1748576267007,0.75786,2638.5,2638.4,5.20248]
[1748576267703,0.75786,2638.5,2638.4,0.6306]
[1748576267908,0.75789,2638.4,2638.3,3.2078]
[1748576269404,0.75789,2638.4,2638.3,3.27773857]
[1748576269702,0.75789,2638.4,2638.3,4.03565857]
[1748576270206,0.75789,2638.4,2638.3,3.27773857]
[1748576270406,0.75789,2638.4,2638.3,4.03565857]
[1748576271308,0.75789,2638.4,2638.3,3.96572]
[1748576272307,0.75789,2638.4,2638.3,0.82785857]
[1748576272504,3.2078,2639.0,2638.3,5.06993857]
[1748576272709,0.7578,2638.7,2638.6,3.96561]
[1748576272904,0.7578,2638.7,2638.6,3.2078]
[1748576273305,0.7578,2638.7,2638.6,3.8598]
[1748576273597,0.7578,2638.7,2638.6,0.652]
[1748576274201,0.75789,2638.4,2638.3,4.03563857]
[1748576274401,0.75789,2638.4,2638.3,4.6177]
[1748576274809,0.75787,2638.5,2638.4,0.75787]
[1748576275511,0.75787,2638.5,2638.4,1.2245]
[1748576276113,0.75787,2638.5,2638.4,1.98239]
[1748576276611,0.75787,2638.5,2638.4,1.2245]
[1748576277611,0.75787,2638.5,2638.4,1.98239]
[1748576277811,0.75785,2638.6,2638.5,0.75783]
[1748576278206,0.75786,2638.5,2638.4,1.98236]
[1748576279503,0.75784,2638.6,2638.5,0.75784]
[1748576280108,0.75786,2638.5,2638.4,1.98236]
[1748576282119,0.75785,2638.6,2638.5,0.75784]
[1748576282417,0.75784,2638.6,2638.5,0.75784]
[1748576283215,0.75786,2638.5,2638.4,1.98238]
[1748576283410,0.75786,2638.5,2638.4,1.2245]
[1748576284817,0.75786,2638.5,2638.4,1.98239]
[1748576287214,0.75786,2638.5,2638.4,1.2245]
[1748576287615,0.75786,2638.5,2638.4,1.29443857]
[1748576287819,0.75786,2638.5,2638.4,2.05232857]
[1748576288515,0.75794,2638.2,2638.1,0.00568397]
[1748576289116,1.7243507,2638.2,2638.1,0.00568397]
[1748576289311,1.7243507,2638.2,2637.2,3.813]
[1748576289312,11.0733107,2638.2,2637.2,3.813]
[1748576289621,0.75815,2637.5,2637.4,1.2149]
[1748576293316,0.7582,2637.3,2637.2,0.00568397]
[1748576293517,0.75835,2636.8,2636.7,1.2755]
[1748576293724,0.75835,2636.8,2636.7,0.06993857]
[1748576294116,0.94795,2636.8,2636.7,0.06993857]
[1748576294315,1.92799011,2636.8,2636.7,0.06993857]
[1748576294517,3.15349011,2636.8,2636.7,0.06993857]
[1748576294716,0.7584,2636.6,2636.5,0.00568397]
[1748576299826,0.7584,2636.6,2636.5,0.07562254]
[1748576301121,0.7584,2636.6,2636.5,1.98162254]
[1748576302822,0.7584,2636.6,2636.5,0.07562254]
[1748576304930,1.9935,2636.6,2636.5,0.07562254]
[1748576305131,0.7584,2636.6,2636.5,0.07562254]
[1748576308024,0.7584,2636.6,2636.5,0.83405254]
[1748576308328,0.7584,2636.6,2636.5,0.07562254]
[1748576308534,0.7584,2636.6,2636.5,1.38712254]
[1748576308732,0.7584,2636.6,2636.5,2.01442254]
[1748576314338,0.7584,2636.6,2636.5,2.77285254]
[1748576315242,0.7584,2636.6,2636.5,5.98065254]
[1748576317944,0.1896,2636.8,2636.7,0.75838]
[1748576318742,0.1896,2636.8,2636.7,2.06588]
[1748576320751,0.94795,2636.8,2636.7,2.06588]
[1748576321043,0.94795,2636.8,2636.7,1.3075]
[1748576321545,0.94795,2636.8,2636.7,2.06588]
[1748576321948,0.94795,2636.8,2636.7,1.3075]
[1748576322346,0.94795,2636.8,2636.7,2.06588]
[1748576324445,0.94795,2636.8,2636.7,1.3075]
[1748576325648,0.1896,2636.8,2636.7,2.06588]
[1748576328546,0.1896,2636.8,2636.7,7.06588]
[1748576331254,0.1896,2636.8,2636.7,7.13581857]
[1748576332351,0.1896,2636.8,2636.7,2.13581857]
[1748576338854,0.94795,2636.8,2636.7,1.37743857]
[1748576339872,0.94795,2636.8,2636.7,2.13581857]
[1748576340162,0.94795,2636.8,2636.7,1.37743857]
[1748576340368,0.1896,2636.8,2636.7,2.13581857]
[1748576343867,0.00568397,2637.7,2636.7,23.91943857]
[1748576344063,0.00568397,2637.7,2637.6,3.96592]
[1748576344267,0.00568397,2637.7,2637.6,7.0198]
[1748576344670,0.00568397,2637.7,2637.6,7.77792]
[1748576344866,0.00568397,2637.7,2637.6,9.04012]
[1748576348060,12.02448397,2637.7,2636.7,0.06993857]
[1748576348268,0.75832,2636.9,2636.7,0.06993857]
[1748576348460,0.75832,2636.9,2636.5,0.00568397]
[1748576348767,0.75831,2637.0,2636.7,0.75835]
[1748576348966,3.96608,2637.1,2636.7,3.811]
[1748576349267,0.75829,2637.0,2636.8,0.75833]
[1748576349468,3.96606,2637.1,2636.9,0.75831]
[1748576349660,0.75826,2637.1,2636.9,0.75831]
[1748576349861,0.6127,2637.2,2636.7,7.08873857]
[1748576350062,0.75833,2636.9,2636.7,7.84709857]
[1748576350263,0.75833,2636.9,2636.8,3.811]
[1748576350663,0.75833,2636.9,2636.7,4.03609857]
[1748576350861,0.75835,2636.8,2636.7,0.06993857]
[1748576351270,0.75834,2636.9,2636.7,0.06993857]
[1748576351462,0.75834,2636.9,2636.7,0.82828857]
[1748576351764,2.75851,2637.0,2636.7,0.06993857]
[1748576351970,0.75829,2637.0,2636.8,0.75833]
[1748576353170,3.96608,2637.1,2636.9,0.75831]
[1748576353359,3.96608,2637.1,2636.8,2.02733]
[1748576353560,0.75827,2637.1,2636.9,0.75831]
[1748576353764,1.9475,2637.2,2636.8,1.269]
[1748576354171,0.75826,2637.1,2636.9,0.75829]
[1748576354364,2.09306,2637.1,2636.9,0.75829]
[1748576355569,0.75829,2637.0,2636.8,1.269]
[1748576356370,0.75832,2636.9,2636.8,0.75835]
[1748576356579,0.7583,2637.0,2636.9,0.75832]
[1748576356871,0.7583,2637.0,2636.8,0.75833]
[1748576357472,2.09308,2637.1,2636.9,0.75832]
[1748576358668,1.37095,2637.2,2636.7,5.13223857]
[1748576358868,0.6127,2637.2,2637.1,0.75826]
[1748576359974,3.96599,2637.4,2637.3,0.7582]
[1748576360182,3.96599,2637.4,2637.2,0.75821]
[1748576360183,3.2078,2637.4,2637.2,0.75821]
[1748576360376,0.75822,2637.3,2637.1,0.75824]
[1748576360774,0.75822,2637.3,2637.2,0.75823]
[1748576360976,3.2078,2637.4,2637.1,3.812]
[1748576360977,0.75825,2637.2,2637.1,3.812]
[1748576361278,3.2078,2637.4,2636.9,0.06993857]
[1748576361481,0.75827,2637.1,2637.0,0.75828]
[1748576361774,2.07882,2637.3,2636.9,0.06993857]
[1748576362084,0.75823,2637.2,2637.1,0.75824]
[1748576362476,2.07881,2637.3,2637.1,0.75824]
[1748576362680,0.75825,2637.2,2637.1,0.75826]
[1748576363583,2.07882,2637.3,2637.1,0.75826]
[1748576363786,0.75823,2637.2,2637.0,2.00547]
[1748576363985,0.75823,2637.2,2637.1,0.75826]
[1748576364182,0.75823,2637.2,2637.0,2.00547]
[1748576364582,0.75823,2637.2,2637.0,0.75827]
[1748576364782,1.9519,2637.1,2637.0,0.75827]
[1748576364983,2.71016,2637.1,2637.0,0.75827]
[1748576365180,1.9519,2637.1,2637.0,0.75827]
[1748576368990,2.71016,2637.1,2637.0,0.75827]
[1748576369190,1.9519,2637.1,2637.0,0.75827]
[1748576371790,2.71018,2637.1,2637.0,0.75829]
[1748576374093,1.9519,2637.1,2636.9,3.88093857]
[1748576374293,2.71018,2637.1,2637.0,0.75829]
[1748576374989,0.75829,2637.0,2636.9,3.811]
[1748576376489,0.75829,2637.0,2636.9,4.56932]
[1748576376994,0.75829,2637.0,2636.9,3.811]
[1748576377995,2.71018,2637.1,2636.9,3.811]
[1748576378189,0.1895,2637.2,2636.9,5.0227]
[1748576378396,0.1895,2637.2,2637.1,0.75826]
[1748576378890,0.1895,2637.2,2637.1,1.96996]
[1748576381896,0.94773,2637.2,2637.1,1.96996]
[1748576382603,0.94773,2637.2,2637.1,1.2117]
[1748576385108,0.75826,2637.1,2637.0,1.49441857]
[1748576385402,0.75826,2637.1,2637.0,2.75341857]
[1748576386299,0.75826,2637.1,2637.0,1.99513857]
[1748576386900,0.1895,2637.2,2637.0,1.99513857]
[1748576387107,0.94775,2637.2,2637.0,2.75341857]
[1748576387808,0.75826,2637.1,2637.0,2.75341857]
[1748576388011,0.75826,2637.1,2637.0,1.99513857]
[1748576388312,0.94775,2637.2,2637.0,2.75340857]
[1748576389008,0.75826,2637.1,2637.0,2.75340857]
[1748576389508,0.94775,2637.2,2637.0,2.75340857]
[1748576390298,0.75826,2637.1,2637.0,2.75340857]
[1748576390711,0.94775,2637.2,2637.0,2.75340857]
[1748576391205,0.1895,2637.2,2637.1,0.75826]
[1748576391410,0.1895,2637.2,2637.1,1.2097]
[1748576391603,0.1895,2637.2,2637.1,1.96796]
[1748576392207,0.94773,2637.2,2637.1,1.96796]
[1748576392406,0.94773,2637.2,2637.1,1.2097]
[1748576397003,0.75826,2637.1,2637.0,0.73613857]
[1748576397908,0.75826,2637.1,2637.0,2.01593857]
[1748576401117,3.96606,2637.1,2637.0,0.06993857]
[1748576401609,4.9489303,2637.1,2637.0,0.06993857]
[1748576402418,5.1385303,2637.1,2637.0,0.06993857]
[1748576404412,5.1385303,2637.1,2637.0,0.71293857]
[1748576404610,5.13753482,2637.1,2637.0,0.71293857]
[1748576405812,5.13753482,2637.1,2637.0,0.06993857]
[1748576406116,0.7584,2636.6,2636.5,0.00568397]
[1748576406511,1.74160408,2636.6,2636.5,0.00568397]
[1748576406717,3.62890408,2636.6,2636.5,0.00568397]
[1748576406921,3.62890408,2636.6,2636.0,0.634]
[1748576406922,0.75855,2636.1,2636.0,0.634]
[1748576407110,5.10405,2636.3,2635.8,0.6578]
[1748576407311,0.75861,2635.9,2635.8,0.6578]
[1748576407515,3.2078,2636.0,2635.4,1.9444]
[1748576407516,5.10428,2636.0,2635.4,1.9444]
[1748576407724,0.75872,2635.5,2635.4,2.6022]
[1748576407910,0.75872,2635.5,2635.4,2.60788397]
[1748576408116,0.75872,2635.5,2635.4,0.00568397]
[1748576410027,1.255,2635.6,2635.4,0.00568397]
[1748576410028,2.01371,2635.6,2635.4,0.00568397]
[1748576410423,0.75872,2635.5,2635.4,0.00568397]
[1748576410626,2.07302,2635.5,2635.4,0.00568397]
[1748576411931,7.07302,2635.5,2635.4,0.00568397]
[1748576412426,2.07302,2635.5,2635.4,0.00568397]
[1748576415129,0.75872,2635.5,2635.4,0.00568397]
[1748576417122,0.75872,2635.5,2635.4,1.90308397]
[1748576419425,0.75872,2635.5,2635.4,0.07562254]
[1748576426335,0.75872,2635.5,2634.5,3.2078]
[1748576426336,6.89685,2635.5,2634.5,3.2078]
[1748576426542,0.75882,2635.2,2635.0,0.75884]
[1748576426835,0.75882,2635.2,2635.1,2.6106]
[1748576427029,7.0208,2635.6,2635.1,2.6106]
[1748576427234,0.7588,2635.3,2635.2,1.3382]
[1748576429141,0.75881,2635.2,2635.1,1.2724]
[1748576429940,0.75881,2635.2,2635.1,2.5565]
[1748576430836,3.2078,2635.6,2635.1,2.5565]
[1748576431042,0.75879,2635.3,2635.2,1.2841]
[1748576431647,0.75872,2635.5,2635.4,0.06993857]
[1748576432943,0.94842,2635.5,2635.4,0.06993857]
[1748576433951,2.19192,2635.5,2635.4,0.06993857]
[1748576436353,3.17532068,2635.5,2635.4,0.06993857]
[1748576437647,3.17630525,2635.5,2635.4,0.06993857]
[1748576437859,1.93280525,2635.5,2635.4,0.06993857]
[1748576441352,1.93280525,2635.5,2635.4,1.34563857]
[1748576441651,0.94842,2635.5,2635.4,1.34563857]
[1748576441947,1.93277207,2635.5,2635.4,1.34563857]
[1748576443252,1.17405207,2635.5,2635.4,2.10438857]
[1748576443453,1.93277207,2635.5,2635.4,1.34563857]
[1748576443648,1.17405207,2635.5,2635.4,2.10438857]
[1748576443851,0.94842,2635.5,2635.4,1.34563857]
[1748576444746,1.93272451,2635.5,2635.4,1.34563857]
[1748576445748,1.17400451,2635.5,2635.4,2.10438857]
[1748576446048,0.1897,2635.5,2635.4,1.34563857]
[1748576446554,0.1897,2635.5,2635.4,2.10438857]
[1748576447055,0.1897,2635.5,2635.4,1.34563857]
[1748576447258,0.1897,2635.5,2635.4,2.10438857]
[1748576447756,0.00568397,2636.0,2635.9,0.75861]
[1748576447954,0.00568397,2636.0,2635.8,0.75861]
[1748576448152,0.00568397,2636.0,2635.9,2.5256]
[1748576448351,1.74802051,2636.0,2635.9,2.5256]
[1748576448663,0.98944051,2636.0,2635.9,2.5256]
[1748576448847,1.74802051,2636.0,2635.9,2.5256]
[1748576450460,0.76426397,2636.0,2635.9,2.5256]
[1748576450848,0.00568397,2636.0,2635.9,2.59553857]
[1748576451051,0.76426397,2636.0,2635.9,2.59553857]
[1748576454162,0.76426397,2636.0,2635.9,3.35414857]
[1748576454358,0.76426397,2636.0,2635.9,2.59553857]
[1748576455464,0.7557959,2636.0,2635.9,2.59553857]
[1748576456967,1.73733543,2636.0,2635.9,2.59553857]
[1748576457168,0.7557959,2636.0,2635.9,2.59553857]